{"text_format":"1","workbook":"xlsx","n_sheets":15,"sheets":["Summary","Calculations","January","February","March","April","May","June","July","August","September","October","November","December","Lookups"],"not_rendered":{"charts":2,"images":2,"macros":1,"external_links":0,"defined_names":2,"comments":0,"pivot_tables":0},"unopened":[],"bounds":{"document_bytes":16777216,"sheet_cells":100000,"rows_first":2000,"rows_last":500,"rows_between":2000,"halvings":0,"cell_chars":16384,"cell_head_chars":4096},"cells_cut":0,"cells_raw":0,"read":"whole","date_system":"1900"}

{"sheet":"Summary","index":0,"n_rows":54,"n_cols":13,"rows_kept":54,"cut":false,"hidden":false,"merged":[[40,0,40,12],[4,0,4,12]]}
[]
[]
[]
[]
["Total Infections by Type"]
["Month","Total","C. diff","Cellulitis/Wound Infection","COVID-19 (Presumptive)","GI Illness","Influenza (confirmed)","Influenza-like Illness","Norovirus","Pneumonia","Scabies","Strep Throat","Other"]
["January",{"$f":"SUM(C7:M7)","v":0},{"$f":"SUM(Calculations!E2)","v":0},{"$f":"SUM(Calculations!F2)","v":0},{"$f":"SUM(Calculations!G2)","v":0},{"$f":"SUM(Calculations!H2)","v":0},{"$f":"SUM(Calculations!I2)","v":0},{"$f":"SUM(Calculations!J2)","v":0},{"$f":"SUM(Calculations!K2)","v":0},{"$f":"SUM(Calculations!L2)","v":0},{"$f":"SUM(Calculations!M2)","v":0},{"$f":"SUM(Calculations!N2)","v":0},{"$f":"SUM(Calculations!O2)","v":0}]
["February",0,{"$f":"SUM(Calculations!E3)","v":0},{"$f":"SUM(Calculations!F3)","v":0},{"$f":"SUM(Calculations!G3)","v":0},{"$f":"SUM(Calculations!H3)","v":0},{"$f":"SUM(Calculations!I3)","v":0},{"$f":"SUM(Calculations!J3)","v":0},{"$f":"SUM(Calculations!K3)","v":0},{"$f":"SUM(Calculations!L3)","v":0},{"$f":"SUM(Calculations!M3)","v":0},{"$f":"SUM(Calculations!N3)","v":0},{"$f":"SUM(Calculations!O3)","v":0}]
["March",0,{"$f":"SUM(Calculations!E4)","v":0},{"$f":"SUM(Calculations!F4)","v":0},{"$f":"SUM(Calculations!G4)","v":0},{"$f":"SUM(Calculations!H4)","v":0},{"$f":"SUM(Calculations!I4)","v":0},{"$f":"SUM(Calculations!J4)","v":0},{"$f":"SUM(Calculations!K4)","v":0},{"$f":"SUM(Calculations!L4)","v":0},{"$f":"SUM(Calculations!M4)","v":0},{"$f":"SUM(Calculations!N4)","v":0},{"$f":"SUM(Calculations!O4)","v":0}]
["April",0,{"$f":"SUM(Calculations!E5)","v":0},{"$f":"SUM(Calculations!F5)","v":0},{"$f":"SUM(Calculations!G5)","v":0},{"$f":"SUM(Calculations!H5)","v":0},{"$f":"SUM(Calculations!I5)","v":0},{"$f":"SUM(Calculations!J5)","v":0},{"$f":"SUM(Calculations!K5)","v":0},{"$f":"SUM(Calculations!L5)","v":0},{"$f":"SUM(Calculations!M5)","v":0},{"$f":"SUM(Calculations!N5)","v":0},{"$f":"SUM(Calculations!O5)","v":0}]
["May",0,{"$f":"SUM(Calculations!E6)","v":0},{"$f":"SUM(Calculations!F6)","v":0},{"$f":"SUM(Calculations!G6)","v":0},{"$f":"SUM(Calculations!H6)","v":0},{"$f":"SUM(Calculations!I6)","v":0},{"$f":"SUM(Calculations!J6)","v":0},{"$f":"SUM(Calculations!K6)","v":0},{"$f":"SUM(Calculations!L6)","v":0},{"$f":"SUM(Calculations!M6)","v":0},{"$f":"SUM(Calculations!N6)","v":0},{"$f":"SUM(Calculations!O6)","v":0}]
["June",0,{"$f":"SUM(Calculations!E7)","v":0},{"$f":"SUM(Calculations!F7)","v":0},{"$f":"SUM(Calculations!G7)","v":0},{"$f":"SUM(Calculations!H7)","v":0},{"$f":"SUM(Calculations!I7)","v":0},{"$f":"SUM(Calculations!J7)","v":0},{"$f":"SUM(Calculations!K7)","v":0},{"$f":"SUM(Calculations!L7)","v":0},{"$f":"SUM(Calculations!M7)","v":0},{"$f":"SUM(Calculations!N7)","v":0},{"$f":"SUM(Calculations!O7)","v":0}]
["July",0,{"$f":"SUM(Calculations!E8)","v":0},{"$f":"SUM(Calculations!F8)","v":0},{"$f":"SUM(Calculations!G8)","v":0},{"$f":"SUM(Calculations!H8)","v":0},{"$f":"SUM(Calculations!I8)","v":0},{"$f":"SUM(Calculations!J8)","v":0},{"$f":"SUM(Calculations!K8)","v":0},{"$f":"SUM(Calculations!L8)","v":0},{"$f":"SUM(Calculations!M8)","v":0},{"$f":"SUM(Calculations!N8)","v":0},{"$f":"SUM(Calculations!O8)","v":0}]
["August",0,{"$f":"SUM(Calculations!E9)","v":0},{"$f":"SUM(Calculations!F9)","v":0},{"$f":"SUM(Calculations!G9)","v":0},{"$f":"SUM(Calculations!H9)","v":0},{"$f":"SUM(Calculations!I9)","v":0},{"$f":"SUM(Calculations!J9)","v":0},{"$f":"SUM(Calculations!K9)","v":0},{"$f":"SUM(Calculations!L9)","v":0},{"$f":"SUM(Calculations!M9)","v":0},{"$f":"SUM(Calculations!N9)","v":0},{"$f":"SUM(Calculations!O9)","v":0}]
["September",0,{"$f":"SUM(Calculations!E10)","v":0},{"$f":"SUM(Calculations!F10)","v":0},{"$f":"SUM(Calculations!G10)","v":0},{"$f":"SUM(Calculations!H10)","v":0},{"$f":"SUM(Calculations!I10)","v":0},{"$f":"SUM(Calculations!J10)","v":0},{"$f":"SUM(Calculations!K10)","v":0},{"$f":"SUM(Calculations!L10)","v":0},{"$f":"SUM(Calculations!M10)","v":0},{"$f":"SUM(Calculations!N10)","v":0},{"$f":"SUM(Calculations!O10)","v":0}]
["October",0,{"$f":"SUM(Calculations!E11)","v":0},{"$f":"SUM(Calculations!F11)","v":0},{"$f":"SUM(Calculations!G11)","v":0},{"$f":"SUM(Calculations!H11)","v":0},{"$f":"SUM(Calculations!I11)","v":0},{"$f":"SUM(Calculations!J11)","v":0},{"$f":"SUM(Calculations!K11)","v":0},{"$f":"SUM(Calculations!L11)","v":0},{"$f":"SUM(Calculations!M11)","v":0},{"$f":"SUM(Calculations!N11)","v":0},{"$f":"SUM(Calculations!O11)","v":0}]
["November",0,{"$f":"SUM(Calculations!E12)","v":0},{"$f":"SUM(Calculations!F12)","v":0},{"$f":"SUM(Calculations!G12)","v":0},{"$f":"SUM(Calculations!H12)","v":0},{"$f":"SUM(Calculations!I12)","v":0},{"$f":"SUM(Calculations!J12)","v":0},{"$f":"SUM(Calculations!K12)","v":0},{"$f":"SUM(Calculations!L12)","v":0},{"$f":"SUM(Calculations!M12)","v":0},{"$f":"SUM(Calculations!N12)","v":0},{"$f":"SUM(Calculations!O12)","v":0}]
["December",0,{"$f":"SUM(Calculations!E13)","v":0},{"$f":"SUM(Calculations!F13)","v":0},{"$f":"SUM(Calculations!G13)","v":0},{"$f":"SUM(Calculations!H13)","v":0},{"$f":"SUM(Calculations!I13)","v":0},{"$f":"SUM(Calculations!J13)","v":0},{"$f":"SUM(Calculations!K13)","v":0},{"$f":"SUM(Calculations!L13)","v":0},{"$f":"SUM(Calculations!M13)","v":0},{"$f":"SUM(Calculations!N13)","v":0},{"$f":"SUM(Calculations!O13)","v":0}]
[]
[]
[]
[]
[]
[]
[]
[]
[]
[]
[]
[]
[]
[]
[]
[]
[]
[]
[]
[]
[]
[]
["Total Infections by Staff Type"]
["Month","RN/LPN","Nursing Assistant","Environmental Services","Dietary","Laundry","Rehab- PT/OT","Respiratory Therapy","Activities","Administration/Front Desk","Maintenance ","Provider- MD/DO/NP/PA","Other"]
["January",{"$f":"SUM(Calculations!S2)","v":0},{"$f":"SUM(Calculations!T2)","v":0},{"$f":"SUM(Calculations!U2)","v":0},{"$f":"SUM(Calculations!V2)","v":0},{"$f":"SUM(Calculations!W2)","v":0},{"$f":"SUM(Calculations!X2)","v":0},{"$f":"SUM(Calculations!Y2)","v":0},{"$f":"SUM(Calculations!Z2)","v":0},{"$f":"SUM(Calculations!AA2)","v":0},{"$f":"SUM(Calculations!AB2)","v":0},{"$f":"SUM(Calculations!AC2)","v":0},{"$f":"SUM(Calculations!AD2)","v":0}]
["February",{"$f":"SUM(Calculations!S3)","v":0},{"$f":"SUM(Calculations!T3)","v":0},{"$f":"SUM(Calculations!U3)","v":0},{"$f":"SUM(Calculations!V3)","v":0},{"$f":"SUM(Calculations!W3)","v":0},{"$f":"SUM(Calculations!X3)","v":0},{"$f":"SUM(Calculations!Y3)","v":0},{"$f":"SUM(Calculations!Z3)","v":0},{"$f":"SUM(Calculations!AA3)","v":0},{"$f":"SUM(Calculations!AB3)","v":0},{"$f":"SUM(Calculations!AC3)","v":0},{"$f":"SUM(Calculations!AD3)","v":0}]
["March",{"$f":"SUM(Calculations!S4)","v":0},{"$f":"SUM(Calculations!T4)","v":0},{"$f":"SUM(Calculations!U4)","v":0},{"$f":"SUM(Calculations!V4)","v":0},{"$f":"SUM(Calculations!W4)","v":0},{"$f":"SUM(Calculations!X4)","v":0},{"$f":"SUM(Calculations!Y4)","v":0},{"$f":"SUM(Calculations!Z4)","v":0},{"$f":"SUM(Calculations!AA4)","v":0},{"$f":"SUM(Calculations!AB4)","v":0},{"$f":"SUM(Calculations!AC4)","v":0},{"$f":"SUM(Calculations!AD4)","v":0}]
["April",{"$f":"SUM(Calculations!S5)","v":0},{"$f":"SUM(Calculations!T5)","v":0},{"$f":"SUM(Calculations!U5)","v":0},{"$f":"SUM(Calculations!V5)","v":0},{"$f":"SUM(Calculations!W5)","v":0},{"$f":"SUM(Calculations!X5)","v":0},{"$f":"SUM(Calculations!Y5)","v":0},{"$f":"SUM(Calculations!Z5)","v":0},{"$f":"SUM(Calculations!AA5)","v":0},{"$f":"SUM(Calculations!AB5)","v":0},{"$f":"SUM(Calculations!AC5)","v":0},{"$f":"SUM(Calculations!AD5)","v":0}]
["May",{"$f":"SUM(Calculations!S6)","v":0},{"$f":"SUM(Calculations!T6)","v":0},{"$f":"SUM(Calculations!U6)","v":0},{"$f":"SUM(Calculations!V6)","v":0},{"$f":"SUM(Calculations!W6)","v":0},{"$f":"SUM(Calculations!X6)","v":0},{"$f":"SUM(Calculations!Y6)","v":0},{"$f":"SUM(Calculations!Z6)","v":0},{"$f":"SUM(Calculations!AA6)","v":0},{"$f":"SUM(Calculations!AB6)","v":0},{"$f":"SUM(Calculations!AC6)","v":0},{"$f":"SUM(Calculations!AD6)","v":0}]
["June",{"$f":"SUM(Calculations!S7)","v":0},{"$f":"SUM(Calculations!T7)","v":0},{"$f":"SUM(Calculations!U7)","v":0},{"$f":"SUM(Calculations!V7)","v":0},{"$f":"SUM(Calculations!W7)","v":0},{"$f":"SUM(Calculations!X7)","v":0},{"$f":"SUM(Calculations!Y7)","v":0},{"$f":"SUM(Calculations!Z7)","v":0},{"$f":"SUM(Calculations!AA7)","v":0},{"$f":"SUM(Calculations!AB7)","v":0},{"$f":"SUM(Calculations!AC7)","v":0},{"$f":"SUM(Calculations!AD7)","v":0}]
["July",{"$f":"SUM(Calculations!S8)","v":0},{"$f":"SUM(Calculations!T8)","v":0},{"$f":"SUM(Calculations!U8)","v":0},{"$f":"SUM(Calculations!V8)","v":0},{"$f":"SUM(Calculations!W8)","v":0},{"$f":"SUM(Calculations!X8)","v":0},{"$f":"SUM(Calculations!Y8)","v":0},{"$f":"SUM(Calculations!Z8)","v":0},{"$f":"SUM(Calculations!AA8)","v":0},{"$f":"SUM(Calculations!AB8)","v":0},{"$f":"SUM(Calculations!AC8)","v":0},{"$f":"SUM(Calculations!AD8)","v":0}]
["August",{"$f":"SUM(Calculations!S9)","v":0},{"$f":"SUM(Calculations!T9)","v":0},{"$f":"SUM(Calculations!U9)","v":0},{"$f":"SUM(Calculations!V9)","v":0},{"$f":"SUM(Calculations!W9)","v":0},{"$f":"SUM(Calculations!X9)","v":0},{"$f":"SUM(Calculations!Y9)","v":0},{"$f":"SUM(Calculations!Z9)","v":0},{"$f":"SUM(Calculations!AA9)","v":0},{"$f":"SUM(Calculations!AB9)","v":0},{"$f":"SUM(Calculations!AC9)","v":0},{"$f":"SUM(Calculations!AD9)","v":0}]
["September",{"$f":"SUM(Calculations!S10)","v":0},{"$f":"SUM(Calculations!T10)","v":0},{"$f":"SUM(Calculations!U10)","v":0},{"$f":"SUM(Calculations!V10)","v":0},{"$f":"SUM(Calculations!W10)","v":0},{"$f":"SUM(Calculations!X10)","v":0},{"$f":"SUM(Calculations!Y10)","v":0},{"$f":"SUM(Calculations!Z10)","v":0},{"$f":"SUM(Calculations!AA10)","v":0},{"$f":"SUM(Calculations!AB10)","v":0},{"$f":"SUM(Calculations!AC10)","v":0},{"$f":"SUM(Calculations!AD10)","v":0}]
["October",{"$f":"SUM(Calculations!S11)","v":0},{"$f":"SUM(Calculations!T11)","v":0},{"$f":"SUM(Calculations!U11)","v":0},{"$f":"SUM(Calculations!V11)","v":0},{"$f":"SUM(Calculations!W11)","v":0},{"$f":"SUM(Calculations!X11)","v":0},{"$f":"SUM(Calculations!Y11)","v":0},{"$f":"SUM(Calculations!Z11)","v":0},{"$f":"SUM(Calculations!AA11)","v":0},{"$f":"SUM(Calculations!AB11)","v":0},{"$f":"SUM(Calculations!AC11)","v":0},{"$f":"SUM(Calculations!AD11)","v":0}]
["November",{"$f":"SUM(Calculations!S12)","v":0},{"$f":"SUM(Calculations!T12)","v":0},{"$f":"SUM(Calculations!U12)","v":0},{"$f":"SUM(Calculations!V12)","v":0},{"$f":"SUM(Calculations!W12)","v":0},{"$f":"SUM(Calculations!X12)","v":0},{"$f":"SUM(Calculations!Y12)","v":0},{"$f":"SUM(Calculations!Z12)","v":0},{"$f":"SUM(Calculations!AA12)","v":0},{"$f":"SUM(Calculations!AB12)","v":0},{"$f":"SUM(Calculations!AC12)","v":0},{"$f":"SUM(Calculations!AD12)","v":0}]
["December",{"$f":"SUM(Calculations!S13)","v":0},{"$f":"SUM(Calculations!T13)","v":0},{"$f":"SUM(Calculations!U13)","v":0},{"$f":"SUM(Calculations!V13)","v":0},{"$f":"SUM(Calculations!W13)","v":0},{"$f":"SUM(Calculations!X13)","v":0},{"$f":"SUM(Calculations!Y13)","v":0},{"$f":"SUM(Calculations!Z13)","v":0},{"$f":"SUM(Calculations!AA13)","v":0},{"$f":"SUM(Calculations!AB13)","v":0},{"$f":"SUM(Calculations!AC13)","v":0},{"$f":"SUM(Calculations!AD13)","v":0}]

{"sheet":"Calculations","index":1,"n_rows":14,"n_cols":30,"rows_kept":14,"cut":false,"hidden":true,"merged":[]}
[null,null,"Results","Total","C. diff","Cellulitis/Wound Infection","COVID-19 (Presumptive)","GI Illness","Influenza (confirmed)","Influenza-like Illness","Norovirus","Pneumonia","Scabies","Strep Throat","Other",null,null,"Staff Type","RN/LPN","Nursing Assistant","Environmental Services","Dietary","Laundry","Rehab- PT/OT","Respiratory Therapy","Activities","Administration/Front Desk","Maintenance ","Provider- MD/DO/NP/PA","Other"]
[null,null,"January",{"$f":"SUM(E2:O2)","v":0},{"$f":"COUNTIF(January!O3:O701, \"C. diff\")","v":0},{"$f":"COUNTIF(January!O3:O701, \"Cellulitis/Wound Infection\")","v":0},{"$f":"COUNTIF(January!O3:O701, \"COVID-19 (Presumptive)\")","v":0},{"$f":"COUNTIF(January!O3:O701, \"GI Illness\")","v":0},{"$f":"COUNTIF(January!O3:O701, \"Influenza (confirmed)\")","v":0},{"$f":"COUNTIF(January!O3:O701, \"Influenza-like Illness\")","v":0},{"$f":"COUNTIF(January!O3:O701, \"Norovirus\")","v":0},{"$f":"COUNTIF(January!O3:O701, \"Pneumonia\")","v":0},{"$f":"COUNTIF(January!O3:O701, \"Scabies\")","v":0},{"$f":"COUNTIF(January!O3:O701, \"Strep Throat\")","v":0},{"$f":"COUNTIF(January!O3:O701, \"Other\")","v":0},null,null,"January ",{"$f":"COUNTIF(January!C3:C701, \"RN/LPN\")","v":0},{"$f":"COUNTIF(January!C3:C701, \"Nursing Assistant\")","v":0},{"$f":"COUNTIF(January!C3:C701, \"Environmental Services\")","v":0},{"$f":"COUNTIF(January!C3:C701, \"Dietary\")","v":0},{"$f":"COUNTIF(January!C3:C701, \"Laundry\")","v":0},{"$f":"COUNTIF(January!C3:C701, \"Rehab- PT/OT\")","v":0},{"$f":"COUNTIF(January!C3:C701, \"Respiratory Therapy\")","v":0},{"$f":"COUNTIF(January!C3:C701, \"Activities\")","v":0},{"$f":"COUNTIF(January!C3:C701, \"Administration/Front Desk\")","v":0},{"$f":"COUNTIF(January!C3:C701, \"Maintenance\")","v":0},{"$f":"COUNTIF(January!C3:C701, \"Provider- MD/DO/NP/PA\")","v":0},{"$f":"COUNTIF(January!C3:C701, \"Other\")","v":0}]
[null,null,"February",0,{"$f":"COUNTIF(February!O3:O701, \"C. diff\")","v":0},{"$f":"COUNTIF(February!O3:O701, \"Cellulitis/Wound Infection\")","v":0},{"$f":"COUNTIF(February!O3:O701, \"COVID-19 (Presumptive)\")","v":0},{"$f":"COUNTIF(February!O3:O701, \"GI Illness\")","v":0},{"$f":"COUNTIF(February!O3:O701, \"Influenza (confirmed)\")","v":0},{"$f":"COUNTIF(February!O3:O701, \"Influenza-like Illness\")","v":0},{"$f":"COUNTIF(February!O3:O701, \"Norovirus\")","v":0},{"$f":"COUNTIF(February!O3:O701, \"Pneumonia\")","v":0},{"$f":"COUNTIF(February!O3:O701, \"Scabies\")","v":0},{"$f":"COUNTIF(February!O3:O701, \"Strep Throat\")","v":0},{"$f":"COUNTIF(February!O3:O701, \"Other\")","v":0},null,null,"February",{"$f":"COUNTIF(February!C3:C599, \"RN/LPN\")","v":0},{"$f":"COUNTIF(February!C3:C599, \"Nursing Assistant\")","v":0},{"$f":"COUNTIF(February!C3:C599, \"Environmental Services\")","v":0},{"$f":"COUNTIF(February!C3:C599, \"Dietary\")","v":0},{"$f":"COUNTIF(February!C3:C599, \"Laundry\")","v":0},{"$f":"COUNTIF(February!C3:C599, \"Rehab- PT/OT\")","v":0},{"$f":"COUNTIF(February!C3:C599, \"Respiratory Therapy\")","v":0},{"$f":"COUNTIF(February!C3:C599, \"Activities\")","v":0},{"$f":"COUNTIF(February!C3:C599, \"Administration/Front Desk\")","v":0},{"$f":"COUNTIF(February!C3:C599, \"Maintenance\")","v":0},{"$f":"COUNTIF(February!C3:C599, \"Provider- MD/DO/NP/PA\")","v":0},{"$f":"COUNTIF(February!C3:C599, \"Other\")","v":0}]
[null,null,"March",0,{"$f":"COUNTIF(March!O3:O701, \"C. diff\")","v":0},{"$f":"COUNTIF(March!O3:O701, \"Cellulitis/Wound Infection\")","v":0},{"$f":"COUNTIF(March!O3:O701, \"COVID-19 (Presumptive)\")","v":0},{"$f":"COUNTIF(March!O3:O701, \"GI Illness\")","v":0},{"$f":"COUNTIF(March!O3:O701, \"Influenza (confirmed)\")","v":0},{"$f":"COUNTIF(March!O3:O701, \"Influenza-like Illness\")","v":0},{"$f":"COUNTIF(March!O3:O701, \"Norovirus\")","v":0},{"$f":"COUNTIF(March!O3:O701, \"Pneumonia\")","v":0},{"$f":"COUNTIF(March!O3:O701, \"Scabies\")","v":0},{"$f":"COUNTIF(March!O3:O701, \"Strep Throat\")","v":0},{"$f":"COUNTIF(March!O3:O701, \"Other\")","v":0},null,null,"March",{"$f":"COUNTIF(March!C3:C600, \"RN/LPN\")","v":0},{"$f":"COUNTIF(March!C3:C599, \"Nursing Assistant\")","v":0},{"$f":"COUNTIF(March!C3:C599, \"Environmental Services\")","v":0},{"$f":"COUNTIF(March!C3:C599, \"Dietary\")","v":0},{"$f":"COUNTIF(March!C3:C599, \"Laundry\")","v":0},{"$f":"COUNTIF(March!C3:C599, \"Rehab- PT/OT\")","v":0},{"$f":"COUNTIF(March!C3:C599, \"Respiratory Therapy\")","v":0},{"$f":"COUNTIF(March!C3:C599, \"Activities\")","v":0},{"$f":"COUNTIF(March!C3:C599, \"Administration/Front Desk\")","v":0},{"$f":"COUNTIF(March!C3:C599, \"Maintenance\")","v":0},{"$f":"COUNTIF(March!C3:C599, \"Provider- MD/DO/NP/PA\")","v":0},{"$f":"COUNTIF(March!C3:C599, \"Other\")","v":0}]
[null,null,"April",0,{"$f":"COUNTIF(April!O3:O701, \"C. diff\")","v":0},{"$f":"COUNTIF(April!O3:O701, \"Cellulitis/Wound Infection\")","v":0},{"$f":"COUNTIF(April!O3:O701, \"COVID-19 (Presumptive)\")","v":0},{"$f":"COUNTIF(April!O3:O701, \"GI Illness\")","v":0},{"$f":"COUNTIF(April!O3:O701, \"Influenza (confirmed)\")","v":0},{"$f":"COUNTIF(April!O3:O701, \"Influenza-like Illness\")","v":0},{"$f":"COUNTIF(April!O3:O701, \"Norovirus\")","v":0},{"$f":"COUNTIF(April!O3:O701, \"Pneumonia\")","v":0},{"$f":"COUNTIF(April!O3:O701, \"Scabies\")","v":0},{"$f":"COUNTIF(April!O3:O701, \"Strep Throat\")","v":0},{"$f":"COUNTIF(April!O3:O701, \"Other\")","v":0},null,null,"April",{"$f":"COUNTIF(April!C3:C601, \"RN/LPN\")","v":0},{"$f":"COUNTIF(April!C3:C599, \"Nursing Assistant\")","v":0},{"$f":"COUNTIF(April!C3:C599, \"Environmental Services\")","v":0},{"$f":"COUNTIF(April!C3:C599, \"Dietary\")","v":0},{"$f":"COUNTIF(April!C3:C599, \"Laundry\")","v":0},{"$f":"COUNTIF(April!C3:C599, \"Rehab- PT/OT\")","v":0},{"$f":"COUNTIF(April!C3:C599, \"Respiratory Therapy\")","v":0},{"$f":"COUNTIF(April!C3:C599, \"Activities\")","v":0},{"$f":"COUNTIF(April!C3:C599, \"Administration/Front Desk\")","v":0},{"$f":"COUNTIF(April!C3:C599, \"Maintenance\")","v":0},{"$f":"COUNTIF(April!C3:C599, \"Provider- MD/DO/NP/PA\")","v":0},{"$f":"COUNTIF(April!C3:C599, \"Other\")","v":0}]
[null,null,"May",0,{"$f":"COUNTIF(May!O3:O701, \"C. diff\")","v":0},{"$f":"COUNTIF(May!O3:O701, \"Cellulitis/Wound Infection\")","v":0},{"$f":"COUNTIF(May!O3:O701, \"COVID-19 (Presumptive)\")","v":0},{"$f":"COUNTIF(May!O3:O701, \"GI Illness\")","v":0},{"$f":"COUNTIF(May!O3:O701, \"Influenza (confirmed)\")","v":0},{"$f":"COUNTIF(May!O3:O701, \"Influenza-like Illness\")","v":0},{"$f":"COUNTIF(May!O3:O701, \"Norovirus\")","v":0},{"$f":"COUNTIF(May!O3:O701, \"Pneumonia\")","v":0},{"$f":"COUNTIF(May!O3:O701, \"Scabies\")","v":0},{"$f":"COUNTIF(May!O3:O701, \"Strep Throat\")","v":0},{"$f":"COUNTIF(May!O3:O701, \"Other\")","v":0},null,null,"May",{"$f":"COUNTIF(May!C3:C602, \"RN/LPN\")","v":0},{"$f":"COUNTIF(May!C3:C599, \"Nursing Assistant\")","v":0},{"$f":"COUNTIF(May!C3:C599, \"Environmental Services\")","v":0},{"$f":"COUNTIF(May!C3:C599, \"Dietary\")","v":0},{"$f":"COUNTIF(May!C3:C599, \"Laundry\")","v":0},{"$f":"COUNTIF(May!C3:C599, \"Rehab- PT/OT\")","v":0},{"$f":"COUNTIF(May!C3:C599, \"Respiratory Therapy\")","v":0},{"$f":"COUNTIF(May!C3:C599, \"Activities\")","v":0},{"$f":"COUNTIF(May!C3:C599, \"Administration/Front Desk\")","v":0},{"$f":"COUNTIF(May!C3:C599, \"Maintenance\")","v":0},{"$f":"COUNTIF(May!C3:C599, \"Provider- MD/DO/NP/PA\")","v":0},{"$f":"COUNTIF(May!C3:C599, \"Other\")","v":0}]
[null,null,"June",0,{"$f":"COUNTIF(June!O3:O701, \"C. diff\")","v":0},{"$f":"COUNTIF(June!O3:O701, \"Cellulitis/Wound Infection\")","v":0},{"$f":"COUNTIF(June!O3:O701, \"COVID-19 (Presumptive)\")","v":0},{"$f":"COUNTIF(June!O3:O701, \"GI Illness\")","v":0},{"$f":"COUNTIF(June!O3:O701, \"Influenza (confirmed)\")","v":0},{"$f":"COUNTIF(June!O3:O701, \"Influenza-like Illness\")","v":0},{"$f":"COUNTIF(June!O3:O701, \"Norovirus\")","v":0},{"$f":"COUNTIF(June!O3:O701, \"Pneumonia\")","v":0},{"$f":"COUNTIF(June!O3:O701, \"Scabies\")","v":0},{"$f":"COUNTIF(June!O3:O701, \"Strep Throat\")","v":0},{"$f":"COUNTIF(June!O3:O701, \"Other\")","v":0},null,null,"June",{"$f":"COUNTIF(June!C3:C599, \"RN/LPN\")","v":0},{"$f":"COUNTIF(June!C3:C599, \"Nursing Assistant\")","v":0},{"$f":"COUNTIF(June!C3:C599, \"Environmental Services\")","v":0},{"$f":"COUNTIF(June!C3:C599, \"Dietary\")","v":0},{"$f":"COUNTIF(June!C3:C599, \"Laundry\")","v":0},{"$f":"COUNTIF(June!C3:C599, \"Rehab- PT/OT\")","v":0},{"$f":"COUNTIF(June!C3:C599, \"Respiratory Therapy\")","v":0},{"$f":"COUNTIF(June!C3:C599, \"Activities\")","v":0},{"$f":"COUNTIF(June!C3:C599, \"Administration/Front Desk\")","v":0},{"$f":"COUNTIF(June!C3:C599, \"Maintenance\")","v":0},{"$f":"COUNTIF(June!C3:C599, \"Provider- MD/DO/NP/PA\")","v":0},{"$f":"COUNTIF(June!C3:C599, \"Other\")","v":0}]
[null,null,"July",0,{"$f":"COUNTIF(July!O3:O701, \"C. diff\")","v":0},{"$f":"COUNTIF(July!O3:O701, \"Cellulitis/Wound Infection\")","v":0},{"$f":"COUNTIF(July!O3:O701, \"COVID-19 (Presumptive)\")","v":0},{"$f":"COUNTIF(July!O3:O701, \"GI Illness\")","v":0},{"$f":"COUNTIF(July!O3:O701, \"Influenza (confirmed)\")","v":0},{"$f":"COUNTIF(July!O3:O701, \"Influenza-like Illness\")","v":0},{"$f":"COUNTIF(July!O3:O701, \"Norovirus\")","v":0},{"$f":"COUNTIF(July!O3:O701, \"Pneumonia\")","v":0},{"$f":"COUNTIF(July!O3:O701, \"Scabies\")","v":0},{"$f":"COUNTIF(July!O3:O701, \"Strep Throat\")","v":0},{"$f":"COUNTIF(July!O3:O701, \"Other\")","v":0},null,null,"July",{"$f":"COUNTIF(July!C3:C599, \"RN/LPN\")","v":0},{"$f":"COUNTIF(July!C3:C599, \"Nursing Assistant\")","v":0},{"$f":"COUNTIF(July!C3:C599, \"Environmental Services\")","v":0},{"$f":"COUNTIF(July!C3:C599, \"Dietary\")","v":0},{"$f":"COUNTIF(July!C3:C599, \"Laundry\")","v":0},{"$f":"COUNTIF(July!C3:C599, \"Rehab- PT/OT\")","v":0},{"$f":"COUNTIF(July!C3:C599, \"Respiratory Therapy\")","v":0},{"$f":"COUNTIF(July!C3:C599, \"Activities\")","v":0},{"$f":"COUNTIF(July!C3:C599, \"Administration/Front Desk\")","v":0},{"$f":"COUNTIF(July!C3:C599, \"Maintenance\")","v":0},{"$f":"COUNTIF(July!C3:C599, \"Provider- MD/DO/NP/PA\")","v":0},{"$f":"COUNTIF(July!C3:C599, \"Other\")","v":0}]
[null,null,"August",0,{"$f":"COUNTIF(August!O3:O701, \"C. diff\")","v":0},{"$f":"COUNTIF(August!O3:O701, \"Cellulitis/Wound Infection\")","v":0},{"$f":"COUNTIF(August!O3:O701, \"COVID-19 (Presumptive)\")","v":0},{"$f":"COUNTIF(August!O3:O701, \"GI Illness\")","v":0},{"$f":"COUNTIF(August!O3:O701, \"Influenza (confirmed)\")","v":0},{"$f":"COUNTIF(August!O3:O701, \"Influenza-like Illness\")","v":0},{"$f":"COUNTIF(August!O3:O701, \"Norovirus\")","v":0},{"$f":"COUNTIF(August!O3:O701, \"Pneumonia\")","v":0},{"$f":"COUNTIF(August!O3:O701, \"Scabies\")","v":0},{"$f":"COUNTIF(August!O3:O701, \"Strep Throat\")","v":0},{"$f":"COUNTIF(August!O3:O701, \"Other\")","v":0},null,null,"August",{"$f":"COUNTIF(August!C3:C599, \"RN/LPN\")","v":0},{"$f":"COUNTIF(August!C3:C599, \"Nursing Assistant\")","v":0},{"$f":"COUNTIF(August!C3:C599, \"Environmental Services\")","v":0},{"$f":"COUNTIF(August!C3:C599, \"Dietary\")","v":0},{"$f":"COUNTIF(August!C3:C599, \"Laundry\")","v":0},{"$f":"COUNTIF(August!C3:C599, \"Rehab- PT/OT\")","v":0},{"$f":"COUNTIF(August!C3:C599, \"Respiratory Therapy\")","v":0},{"$f":"COUNTIF(August!C3:C599, \"Activities\")","v":0},{"$f":"COUNTIF(August!C3:C599, \"Administration/Front Desk\")","v":0},{"$f":"COUNTIF(August!C3:C599, \"Maintenance\")","v":0},{"$f":"COUNTIF(August!C3:C599, \"Provider- MD/DO/NP/PA\")","v":0},{"$f":"COUNTIF(August!C3:C599, \"Other\")","v":0}]
[null,null,"September",0,{"$f":"COUNTIF(September!O3:O701, \"C. diff\")","v":0},{"$f":"COUNTIF(September!O3:O701, \"Cellulitis/Wound Infection\")","v":0},{"$f":"COUNTIF(September!O3:O701, \"COVID-19 (Presumptive)\")","v":0},{"$f":"COUNTIF(September!O3:O701, \"GI Illness\")","v":0},{"$f":"COUNTIF(September!O3:O701, \"Influenza (confirmed)\")","v":0},{"$f":"COUNTIF(September!O3:O701, \"Influenza-like Illness\")","v":0},{"$f":"COUNTIF(September!O3:O701, \"Norovirus\")","v":0},{"$f":"COUNTIF(September!O3:O701, \"Pneumonia\")","v":0},{"$f":"COUNTIF(September!O3:O701, \"Scabies\")","v":0},{"$f":"COUNTIF(September!O3:O701, \"Strep Throat\")","v":0},{"$f":"COUNTIF(September!O3:O701, \"Other\")","v":0},null,null,"September",{"$f":"COUNTIF(September!C3:C599, \"RN/LPN\")","v":0},{"$f":"COUNTIF(September!C3:C599, \"Nursing Assistant\")","v":0},{"$f":"COUNTIF(September!C3:C599, \"Environmental Services\")","v":0},{"$f":"COUNTIF(September!C3:C599, \"Dietary\")","v":0},{"$f":"COUNTIF(September!C3:C599, \"Laundry\")","v":0},{"$f":"COUNTIF(September!C3:C599, \"Rehab- PT/OT\")","v":0},{"$f":"COUNTIF(September!C3:C599, \"Respiratory Therapy\")","v":0},{"$f":"COUNTIF(September!C3:C599, \"Activities\")","v":0},{"$f":"COUNTIF(September!C3:C599, \"Administration/Front Desk\")","v":0},{"$f":"COUNTIF(September!C3:C599, \"Maintenance\")","v":0},{"$f":"COUNTIF(September!C3:C599, \"Provider- MD/DO/NP/PA\")","v":0},{"$f":"COUNTIF(September!C3:C599, \"Other\")","v":0}]
[null,null,"October",0,{"$f":"COUNTIF(October!O3:O701, \"C. diff\")","v":0},{"$f":"COUNTIF(October!O3:O701, \"Cellulitis/Wound Infection\")","v":0},{"$f":"COUNTIF(October!O3:O701, \"COVID-19 (Presumptive)\")","v":0},{"$f":"COUNTIF(October!O3:O701, \"GI Illness\")","v":0},{"$f":"COUNTIF(October!O3:O701, \"Influenza (confirmed)\")","v":0},{"$f":"COUNTIF(October!O3:O701, \"Influenza-like Illness\")","v":0},{"$f":"COUNTIF(October!O3:O701, \"Norovirus\")","v":0},{"$f":"COUNTIF(October!O3:O701, \"Pneumonia\")","v":0},{"$f":"COUNTIF(October!O3:O701, \"Scabies\")","v":0},{"$f":"COUNTIF(October!O3:O701, \"Strep Throat\")","v":0},{"$f":"COUNTIF(October!O3:O701, \"Other\")","v":0},null,null,"October ",{"$f":"COUNTIF(October!C3:C599, \"RN/LPN\")","v":0},{"$f":"COUNTIF(October!C3:C599, \"Nursing Assistant\")","v":0},{"$f":"COUNTIF(October!C3:C599, \"Environmental Services\")","v":0},{"$f":"COUNTIF(October!C3:C599, \"Dietary\")","v":0},{"$f":"COUNTIF(October!C3:C599, \"Laundry\")","v":0},{"$f":"COUNTIF(October!C3:C599, \"Rehab- PT/OT\")","v":0},{"$f":"COUNTIF(October!C3:C599, \"Respiratory Therapy\")","v":0},{"$f":"COUNTIF(October!C3:C599, \"Activities\")","v":0},{"$f":"COUNTIF(October!C3:C599, \"Administration/Front Desk\")","v":0},{"$f":"COUNTIF(October!C3:C599, \"Maintenance\")","v":0},{"$f":"COUNTIF(October!C3:C599, \"Provider- MD/DO/NP/PA\")","v":0},{"$f":"COUNTIF(October!C3:C599, \"Other\")","v":0}]
[null,null,"November",0,{"$f":"COUNTIF(November!O3:O701, \"C. diff\")","v":0},{"$f":"COUNTIF(November!O3:O701, \"Cellulitis/Wound Infection\")","v":0},{"$f":"COUNTIF(November!O3:O701, \"COVID-19 (Presumptive)\")","v":0},{"$f":"COUNTIF(November!O3:O701, \"GI Illness\")","v":0},{"$f":"COUNTIF(November!O3:O701, \"Influenza (confirmed)\")","v":0},{"$f":"COUNTIF(November!O3:O701, \"Influenza-like Illness\")","v":0},{"$f":"COUNTIF(November!O3:O701, \"Norovirus\")","v":0},{"$f":"COUNTIF(November!O3:O701, \"Pneumonia\")","v":0},{"$f":"COUNTIF(November!O3:O701, \"Scabies\")","v":0},{"$f":"COUNTIF(November!O3:O701, \"Strep Throat\")","v":0},{"$f":"COUNTIF(November!O3:O701, \"Other\")","v":0},null,null,"November ",{"$f":"COUNTIF(November!C3:C599, \"RN/LPN\")","v":0},{"$f":"COUNTIF(November!C3:C599, \"Nursing Assistant\")","v":0},{"$f":"COUNTIF(November!C3:C599, \"Environmental Services\")","v":0},{"$f":"COUNTIF(November!C3:C599, \"Dietary\")","v":0},{"$f":"COUNTIF(November!C3:C599, \"Laundry\")","v":0},{"$f":"COUNTIF(November!C3:C599, \"Rehab- PT/OT\")","v":0},{"$f":"COUNTIF(November!C3:C599, \"Respiratory Therapy\")","v":0},{"$f":"COUNTIF(November!C3:C599, \"Activities\")","v":0},{"$f":"COUNTIF(November!C3:C599, \"Administration/Front Desk\")","v":0},{"$f":"COUNTIF(November!C3:C599, \"Maintenance\")","v":0},{"$f":"COUNTIF(November!C3:C599, \"Provider- MD/DO/NP/PA\")","v":0},{"$f":"COUNTIF(November!C3:C599, \"Other\")","v":0}]
[null,null,"December",0,{"$f":"COUNTIF(December!O3:O701, \"C. diff\")","v":0},{"$f":"COUNTIF(December!O3:O701, \"Cellulitis/Wound Infection\")","v":0},{"$f":"COUNTIF(December!O3:O701, \"COVID-19 (Presumptive)\")","v":0},{"$f":"COUNTIF(December!O3:O701, \"GI Illness\")","v":0},{"$f":"COUNTIF(December!O3:O701, \"Influenza (confirmed)\")","v":0},{"$f":"COUNTIF(December!O3:O701, \"Influenza-like Illness\")","v":0},{"$f":"COUNTIF(December!O3:O701, \"Norovirus\")","v":0},{"$f":"COUNTIF(December!O3:O701, \"Pneumonia\")","v":0},{"$f":"COUNTIF(December!O3:O701, \"Scabies\")","v":0},{"$f":"COUNTIF(December!O3:O701, \"Strep Throat\")","v":0},{"$f":"COUNTIF(December!O3:O701, \"Other\")","v":0},null,null,"December",{"$f":"COUNTIF(December!C3:C599, \"RN/LPN\")","v":0},{"$f":"COUNTIF(December!C3:C599, \"Nursing Assistant\")","v":0},{"$f":"COUNTIF(December!C3:C599, \"Environmental Services\")","v":0},{"$f":"COUNTIF(December!C3:C599, \"Dietary\")","v":0},{"$f":"COUNTIF(December!C3:C599, \"Laundry\")","v":0},{"$f":"COUNTIF(December!C3:C599, \"Rehab- PT/OT\")","v":0},{"$f":"COUNTIF(December!C3:C599, \"Respiratory Therapy\")","v":0},{"$f":"COUNTIF(December!C3:C599, \"Activities\")","v":0},{"$f":"COUNTIF(December!C3:C599, \"Administration/Front Desk\")","v":0},{"$f":"COUNTIF(December!C3:C599, \"Maintenance\")","v":0},{"$f":"COUNTIF(December!C3:C599, \"Provider- MD/DO/NP/PA\")","v":0},{"$f":"COUNTIF(December!C3:C599, \"Other\")","v":0}]
[null,null,null,null,null,null,null,null,null,null,null,null,null,null,null,null,null,null,null,null,null,null,null,null,null,"               "]

{"sheet":"January","index":2,"n_rows":2,"n_cols":21,"rows_kept":2,"cut":false,"hidden":false,"merged":[[0,17,0,20],[0,0,0,9],[0,10,0,15]]}
["Employee Information",null,null,null,null,null,null,null,null,null,"Diagnostics ",null,null,null,null,null,null,"Treatment Information"]
["Department/Unit","Employee Name","Job Title(s)","Symptoms","Symptom Onset Date","Date Illness Reported","Date of Last Shift","Date Symptoms Resolved","Date Return to Work","Employee Notes","Diagnostic Performed? Y/N","Test Date","Type of Test","Specimen Source","Results","Temperature (if applicable)","Diagnostic Notes","Treatment? Y/N","Treatment Type","Treatment Start Date","Treatment Notes"]

{"sheet":"February","index":3,"n_rows":2,"n_cols":21,"rows_kept":2,"cut":false,"hidden":false,"merged":[[0,0,0,9],[0,10,0,15],[0,17,0,20]]}
["Employee Information",null,null,null,null,null,null,null,null,null,"Diagnostics ",null,null,null,null,null,null,"Treatment Information"]
["Department/Unit","Employee Name","Job Title(s)","Symptoms","Symptom Onset Date","Date Illness Reported","Date of Last Shift","Date Symptoms Resolved","Date Return to Work","Employee Notes","Diagnostic Performed? Y/N","Test Date","Type of Test","Specimen Source","Results","Temperature (if applicable)","Diagnostic Notes","Treatment? Y/N","Treatment Type","Treatment Start Date","Treatment Notes"]

{"sheet":"March","index":4,"n_rows":2,"n_cols":21,"rows_kept":2,"cut":false,"hidden":false,"merged":[[0,0,0,9],[0,10,0,15],[0,17,0,20]]}
["Employee Information",null,null,null,null,null,null,null,null,null,"Diagnostics ",null,null,null,null,null,null,"Treatment Information"]
["Department/Unit","Employee Name","Job Title(s)","Symptoms","Symptom Onset Date","Date Illness Reported","Date of Last Shift","Date Symptoms Resolved","Date Return to Work","Employee Notes","Diagnostic Performed? Y/N","Test Date","Type of Test","Specimen Source","Results","Temperature (if applicable)","Diagnostic Notes","Treatment? Y/N","Treatment Type","Treatment Start Date","Treatment Notes"]

{"sheet":"April","index":5,"n_rows":2,"n_cols":21,"rows_kept":2,"cut":false,"hidden":false,"merged":[[0,0,0,9],[0,10,0,15],[0,17,0,20]]}
["Employee Information",null,null,null,null,null,null,null,null,null,"Diagnostics ",null,null,null,null,null,null,"Treatment Information"]
["Department/Unit","Employee Name","Job Title(s)","Symptoms","Symptom Onset Date","Date Illness Reported","Date of Last Shift","Date Symptoms Resolved","Date Return to Work","Employee Notes","Diagnostic Performed? Y/N","Test Date","Type of Test","Specimen Source","Results","Temperature (if applicable)","Diagnostic Notes","Treatment? Y/N","Treatment Type","Treatment Start Date","Treatment Notes"]

{"sheet":"May","index":6,"n_rows":2,"n_cols":21,"rows_kept":2,"cut":false,"hidden":false,"merged":[[0,0,0,9],[0,10,0,15],[0,17,0,20]]}
["Employee Information",null,null,null,null,null,null,null,null,null,"Diagnostics ",null,null,null,null,null,null,"Treatment Information"]
["Department/Unit","Employee Name","Job Title(s)","Symptoms","Symptom Onset Date","Date Illness Reported","Date of Last Shift","Date Symptoms Resolved","Date Return to Work","Employee Notes","Diagnostic Performed? Y/N","Test Date","Type of Test","Specimen Source","Results","Temperature (if applicable)","Diagnostic Notes","Treatment? Y/N","Treatment Type","Treatment Start Date","Treatment Notes"]

{"sheet":"June","index":7,"n_rows":2,"n_cols":21,"rows_kept":2,"cut":false,"hidden":false,"merged":[[0,0,0,9],[0,10,0,15],[0,17,0,20]]}
["Employee Information",null,null,null,null,null,null,null,null,null,"Diagnostics ",null,null,null,null,null,null,"Treatment Information"]
["Department/Unit","Employee Name","Job Title(s)","Symptoms","Symptom Onset Date","Date Illness Reported","Date of Last Shift","Date Symptoms Resolved","Date Return to Work","Employee Notes","Diagnostic Performed? Y/N","Test Date","Type of Test","Specimen Source","Results","Temperature (if applicable)","Diagnostic Notes","Treatment? Y/N","Treatment Type","Treatment Start Date","Treatment Notes"]

{"sheet":"July","index":8,"n_rows":2,"n_cols":21,"rows_kept":2,"cut":false,"hidden":false,"merged":[[0,0,0,9],[0,10,0,15],[0,17,0,20]]}
["Employee Information",null,null,null,null,null,null,null,null,null,"Diagnostics ",null,null,null,null,null,null,"Treatment Information"]
["Department/Unit","Employee Name","Job Title(s)","Symptoms","Symptom Onset Date","Date Illness Reported","Date of Last Shift","Date Symptoms Resolved","Date Return to Work","Employee Notes","Diagnostic Performed? Y/N","Test Date","Type of Test","Specimen Source","Results","Temperature (if applicable)","Diagnostic Notes","Treatment? Y/N","Treatment Type","Treatment Start Date","Treatment Notes"]

{"sheet":"August","index":9,"n_rows":2,"n_cols":21,"rows_kept":2,"cut":false,"hidden":false,"merged":[[0,0,0,9],[0,10,0,15],[0,17,0,20]]}
["Employee Information",null,null,null,null,null,null,null,null,null,"Diagnostics ",null,null,null,null,null,null,"Treatment Information"]
["Department/Unit","Employee Name","Job Title(s)","Symptoms","Symptom Onset Date","Date Illness Reported","Date of Last Shift","Date Symptoms Resolved","Date Return to Work","Employee Notes","Diagnostic Performed? Y/N","Test Date","Type of Test","Specimen Source","Results","Temperature (if applicable)","Diagnostic Notes","Treatment? Y/N","Treatment Type","Treatment Start Date","Treatment Notes"]

{"sheet":"September","index":10,"n_rows":2,"n_cols":21,"rows_kept":2,"cut":false,"hidden":false,"merged":[[0,0,0,9],[0,10,0,15],[0,17,0,20]]}
["Employee Information",null,null,null,null,null,null,null,null,null,"Diagnostics ",null,null,null,null,null,null,"Treatment Information"]
["Department/Unit","Employee Name","Job Title(s)","Symptoms","Symptom Onset Date","Date Illness Reported","Date of Last Shift","Date Symptoms Resolved","Date Return to Work","Employee Notes","Diagnostic Performed? Y/N","Test Date","Type of Test","Specimen Source","Results","Temperature (if applicable)","Diagnostic Notes","Treatment? Y/N","Treatment Type","Treatment Start Date","Treatment Notes"]

{"sheet":"October","index":11,"n_rows":2,"n_cols":21,"rows_kept":2,"cut":false,"hidden":false,"merged":[[0,0,0,9],[0,10,0,15],[0,17,0,20]]}
["Employee Information",null,null,null,null,null,null,null,null,null,"Diagnostics ",null,null,null,null,null,null,"Treatment Information"]
["Department/Unit","Employee Name","Job Title(s)","Symptoms","Symptom Onset Date","Date Illness Reported","Date of Last Shift","Date Symptoms Resolved","Date Return to Work","Employee Notes","Diagnostic Performed? Y/N","Test Date","Type of Test","Specimen Source","Results","Temperature (if applicable)","Diagnostic Notes","Treatment? Y/N","Treatment Type","Treatment Start Date","Treatment Notes"]

{"sheet":"November","index":12,"n_rows":2,"n_cols":21,"rows_kept":2,"cut":false,"hidden":false,"merged":[[0,0,0,9],[0,10,0,15],[0,17,0,20]]}
["Employee Information",null,null,null,null,null,null,null,null,null,"Diagnostics ",null,null,null,null,null,null,"Treatment Information"]
["Department/Unit","Employee Name","Job Title(s)","Symptoms","Symptom Onset Date","Date Illness Reported","Date of Last Shift","Date Symptoms Resolved","Date Return to Work","Employee Notes","Diagnostic Performed? Y/N","Test Date","Type of Test","Specimen Source","Results","Temperature (if applicable)","Diagnostic Notes","Treatment? Y/N","Treatment Type","Treatment Start Date","Treatment Notes"]

{"sheet":"December","index":13,"n_rows":2,"n_cols":21,"rows_kept":2,"cut":false,"hidden":false,"merged":[[0,0,0,9],[0,10,0,15],[0,17,0,20]]}
["Employee Information",null,null,null,null,null,null,null,null,null,"Diagnostics ",null,null,null,null,null,null,"Treatment Information"]
["Department/Unit","Employee Name","Job Title(s)","Symptoms","Symptom Onset Date","Date Illness Reported","Date of Last Shift","Date Symptoms Resolved","Date Return to Work","Employee Notes","Diagnostic Performed? Y/N","Test Date","Type of Test","Specimen Source","Results","Temperature (if applicable)","Diagnostic Notes","Treatment? Y/N","Treatment Type","Treatment Start Date","Treatment Notes"]

{"sheet":"Lookups","index":14,"n_rows":22,"n_cols":19,"rows_kept":22,"cut":false,"hidden":false,"merged":[]}
[null,null,"Symptoms",null,"ABX Information",null,"Results",null,"Department/Unit",null,null,null,"Specimen Source",null,null,"Staff Title",null,null,"Treatment Type"]
[null,null,"Abdominal Pain",null,"Yes",null,"C. diff",null,null,null,null,null,"Urine",null,null,"RN/LPN",null,null,"Antibiotic "]
[null,null,"Chills",null,"No",null,"Cellulitis/Wound Infection",null,null,null,null,null,"Sputum",null,null,"Nursing Assistant",null,null,"Anti-fungal"]
[null,null,"Cough (new or increased)",null,null,null,"COVID-19 (Presumptive)",null,null,null,null,null,"Blood",null,null,"Environmental Services",null,null,"Anti-viral"]
[null,null,"Diarrhea",null,null,null,"GI Illness",null,null,null,null,null,"Stool",null,null,"Dietary",null,null,"Scabicide"]
[null,null,"Eye",null,null,null,"Influenza-like Illness",null,null,null,null,null,"Throat",null,null,"Laundry",null,null,"Other"]
[null,null,"Fever",null,null,null,"Influenza (confirmed)",null,null,null,null,null,"Rectal",null,null,"Rehab- PT/OT"]
[null,null,"Headache ",null,null,null,"Norovirus",null,null,null,null,null,"Wound",null,null,"Respiratory Therapy"]
[null,null,"Increased Sputum Production",null,null,null,"Pneumonia",null,null,null,null,null,"Skin",null,null,"Activities"]
[null,null,"Lice",null,null,null,"Scabies",null,null,null,null,null,"Nasal",null,null,"Administration/Front Desk"]
[null,null,"Malaise",null,null,null,"Strep Throat",null,null,null,null,null,"Other",null,null,"Maintenance"]
[null,null,"Mylagia/Body Aches",null,null,null,"Other",null,null,null,null,null,null,null,null,"Provider- MD/DO/NP/PA"]
[null,null,"Nasal Congestion",null,null,null,null,null,null,null,null,null,null,null,null,"Other"]
[null,null,"Nausea"]
[null,null,"Purulent Drainage from Wound"]
[null,null,"Sore Throat"]
[null,null,"Rash"]
[null,null,"Shortness of Breath"]
[null,null,"Runny Nose"]
[null,null,"Vomiting "]
[null,null,"Other"]
[null,null,"Non-infectious call in"]